bitfinex-derivatives/quotes_ETHF0:USTF0_20250224
["timestamp","ask_amount","ask_price","bid_price","bid_amount"]
[1740418372177,0.00560276,2676.5,2676.4,3.82218]
[1740418372375,0.75275276,2676.5,2676.4,3.82218]
[1740418372975,0.75275276,2676.5,2676.4,3.075]
[1740418373174,0.74726,2676.1,2676.0,3.21340276]
[1740418373374,7.20578685,2676.1,2676.0,0.00560276]
[1740418375376,0.5451,2676.2,2676.0,0.00560276]
[1740418375573,0.74726,2676.1,2676.0,0.00560276]
[1740418375769,7.20578685,2676.1,2676.0,0.00560276]
[1740418378082,7.57988685,2676.1,2676.0,2.76e-06]
[1740418378873,13.57988685,2676.1,2676.0,2.76e-06]
[1740418380283,13.64118638,2676.1,2676.0,2.76e-06]
[1740418381271,6.43539953,2676.1,2674.9,3.2078]
[1740418381473,0.74762,2674.8,2674.7,3.6096]
[1740418381673,7.20614409,2674.8,2674.7,0.5356]
[1740418382874,0.74768,2674.6,2674.5,3.07860276]
[1740418383277,0.00560276,2675.0,2674.5,3.07860276]
[1740418383477,6.45852409,2674.8,2674.7,0.74765]
[1740418383674,0.74767,2674.7,2674.5,3.82628276]
[1740418383878,0.00560276,2675.0,2674.5,3.07860276]
[1740418384074,0.00560276,2675.0,2674.9,0.7476]
[1740418384282,0.75317276,2675.0,2674.9,0.7476]
[1740418384480,0.75318276,2675.0,2674.9,0.7476]
[1740418384673,0.00560276,2675.0,2674.9,3.9554]
[1740418384874,0.75317276,2675.0,2674.9,3.9554]
[1740418385081,0.00560276,2675.0,2674.9,3.9554]
[1740418386079,7.21169685,2675.0,2674.9,3.2078]
[1740418387380,6.46412685,2675.0,2674.9,3.9554]
[1740418387584,7.21169685,2675.0,2674.9,3.2078]
[1740418387780,6.46412685,2675.0,2674.9,3.9554]
[1740418388085,7.21169685,2675.0,2674.9,3.9554]
[1740418388277,6.46412685,2675.0,2674.9,3.9554]
[1740418388676,7.21169685,2675.0,2674.9,3.9554]
[1740418389383,7.21169685,2675.0,2674.9,3.2078]
[1740418389590,6.46412685,2675.0,2674.9,3.2078]
[1740418389779,0.00560276,2675.0,2674.9,3.9554]
[1740418390281,0.00560276,2675.0,2674.7,0.5823]
[1740418390487,0.74762,2674.9,2674.8,3.07]
[1740418390890,6.45852409,2674.9,2674.8,3.81762]
[1740418391186,7.20612409,2674.9,2674.8,3.81762]
[1740418391588,7.20612409,2674.9,2674.8,0.74762]
[1740418392885,0.74765,2674.8,2674.7,0.74763]
[1740418393085,6.45852409,2674.7,2674.5,6.27940276]
[1740418393286,0.74768,2674.6,2674.5,6.27940276]
[1740418393586,6.45852409,2674.7,2674.6,0.74768]
[1740418393783,7.20617409,2674.7,2674.6,0.74768]
[1740418393989,0.74768,2674.6,2674.5,0.00560276]
[1740418394289,7.03592409,2674.6,2674.5,0.00560276]
[1740418394481,0.00560276,2675.0,2674.5,6.28140276]
[1740418394686,6.45852409,2674.9,2674.6,3.7507]
[1740418394988,6.45852409,2674.7,2674.6,3.7507]
[1740418395180,0.5411,2674.9,2674.6,3.7507]
[1740418395386,6.45852409,2674.7,2674.6,3.7507]
[1740418395579,6.45852409,2674.7,2674.6,6.8167]
[1740418395787,6.45852409,2674.7,2674.5,0.00560276]
[1740418395987,10.24372409,2674.6,2674.5,0.00560276]
[1740418396287,10.99140409,2674.6,2674.5,0.00560276]
[1740418397187,10.24372409,2674.6,2674.5,0.00560276]
[1740418397788,10.61782409,2674.6,2674.5,0.00560276]
[1740418398193,11.36550409,2674.6,2674.5,0.00560276]
[1740418398389,11.36550409,2674.6,2674.5,2.76e-06]
[1740418398786,17.36550409,2674.6,2674.5,2.76e-06]
[1740418399094,1.86952,2674.2,2673.6,0.579]
[1740418399295,6.45852133,2673.8,2673.7,0.74793]
[1740418399491,6.45852133,2673.8,2673.7,3.95573]
[1740418399790,0.5774,2674.6,2673.7,3.2078]
[1740418399989,6.45852133,2674.1,2674.0,3.2078]
[1740418400291,6.45852133,2674.1,2674.0,3.95565]
[1740418400595,0.7478,2674.2,2674.1,0.74782]
[1740418400799,0.7478,2674.2,2674.0,3.2078]
[1740418400800,6.45852133,2674.1,2674.0,3.95565]
[1740418401288,0.5774,2674.6,2674.5,0.74771]
[1740418401491,6.45852133,2674.4,2674.3,0.74776]
[1740418401691,6.45852133,2674.4,2674.3,3.95556]
[1740418402085,7.20626133,2674.4,2674.3,3.95556]
[1740418402287,7.20626133,2674.4,2674.3,3.2078]
[1740418403193,7.20626133,2674.4,2674.3,3.95556]
[1740418403696,6.45852133,2674.4,2674.3,3.95556]
[1740418403894,0.5588,2674.8,2674.3,6.2698]
[1740418404095,0.74772,2674.5,2674.4,0.7477]
[1740418404793,0.74774,2674.4,2674.3,3.2078]
[1740418405000,0.74782,2674.1,2674.0,6.2718]
[1740418405201,0.74774,2674.5,2674.4,0.74771]
[1740418405397,7.20632133,2674.3,2674.2,0.74777]
[1740418405896,0.7478,2674.3,2674.2,0.74777]
[1740418406298,6.45852133,2674.3,2674.0,8.14142]
[1740418406501,6.45852133,2674.3,2674.2,0.74779]
[1740418406798,7.20628133,2674.3,2674.2,0.74779]
[1740418407193,6.45852133,2674.3,2674.0,6.2718]
[1740418408500,6.45852133,2674.1,2674.0,3.2078]
[1740418409201,6.45852133,2674.1,2674.0,0.47033714]
[1740418409596,6.99432133,2674.1,2674.0,0.47033714]
[1740418410000,6.99432133,2674.1,2673.9,0.00560276]
[1740418410199,6.45852133,2674.0,2673.9,0.00560276]
[1740418410704,0.5358,2674.4,2673.9,0.47615197]
[1740418411002,6.45852133,2674.3,2674.0,6.81557409]
[1740418411200,6.45852133,2674.3,2674.1,1.01827143]
[1740418411395,0.5358,2674.7,2674.1,0.47054921]
[1740418411589,6.45852133,2674.3,2674.2,0.47054921]
[1740418411994,0.5358,2674.7,2674.2,0.47054921]
[1740418412198,6.45852133,2674.3,2674.2,0.47054921]
[1740418412899,6.45852133,2674.3,2674.0,3.2078]
[1740418413207,0.5785,2674.6,2674.0,3.2078]
[1740418413208,6.45852133,2674.2,2674.0,3.2078]
[1740418413406,6.45852133,2674.3,2674.1,0.47058811]
[1740418413890,0.5785,2674.6,2674.1,0.47058811]
[1740418414091,0.5785,2674.6,2674.0,3.2078]
[1740418414092,6.45852133,2674.3,2674.2,0.47058811]
[1740418414498,0.5358,2674.7,2674.2,1.01850874]
[1740418414701,6.45852133,2674.3,2674.2,0.47058811]
[1740418414903,6.45852133,2674.3,2674.2,1.01849148]
[1740418415097,0.5358,2674.7,2674.2,1.01849148]
[1740418415293,6.45852133,2674.3,2674.2,0.47058811]
[1740418415499,6.45852133,2674.3,2674.2,1.01862906]
[1740418415700,0.5358,2674.7,2674.2,1.01862906]
[1740418415902,6.45852133,2674.6,2674.3,6.7962]
[1740418416402,0.5358,2674.7,2674.3,6.7962]
[1740418416594,6.45852133,2674.6,2674.3,6.7962]
[1740418417104,0.5358,2674.7,2674.3,6.7962]
[1740418417304,6.45852133,2674.6,2674.3,6.7962]
[1740418417800,6.45852133,2674.4,2674.0,3.2078]
[1740418418004,6.45852133,2674.2,2674.0,3.2078]
[1740418418999,0.3741,2674.6,2673.9,3.05760276]
[1740418419000,6.45852133,2674.1,2673.9,0.00560276]
[1740418419203,6.45852133,2674.0,2673.9,0.75348276]
[1740418419406,7.20637133,2674.0,2673.9,3.21340276]
[1740418419607,7.20637133,2674.0,2673.9,0.00560276]
[1740418419912,0.74784,2674.1,2674.0,0.74782]
[1740418420203,7.20637133,2674.1,2674.0,0.74785]
[1740418420398,0.74785,2674.0,2673.9,0.47681701]
[1740418420599,0.74785,2674.0,2673.9,1.22469701]
[1740418420805,0.74785,2674.0,2673.9,1.0255906]
[1740418421002,0.74785,2674.0,2673.9,0.47681701]
[1740418421204,0.74785,2674.1,2673.9,3.68461701]
[1740418421397,0.74785,2674.0,2673.9,3.68461701]
[1740418421600,0.74785,2674.0,2673.9,4.98135337]
[1740418421800,0.74785,2674.0,2673.9,4.51015912]
[1740418422002,0.74785,2674.0,2673.9,3.96128276]
[1740418422202,0.9314,2674.4,2673.9,3.76247214]
[1740418422403,6.45852133,2674.2,2673.9,3.21340276]
[1740418422603,3.7699,2674.5,2673.9,3.21340276]
[1740418422604,3.2078,2674.5,2673.9,3.21340276]
[1740418422806,6.45852133,2674.4,2674.0,1.09655632]
[1740418423007,6.45852133,2674.4,2674.1,4.070404]
[1740418423309,3.2078,2674.5,2674.1,3.52144768]
[1740418423602,6.45852133,2674.5,2674.2,4.2282543]
[1740418423807,6.45852133,2674.5,2674.2,3.67924768]
[1740418424008,6.45852133,2674.5,2674.3,0.47144768]
[1740418424606,9.66632133,2674.4,2674.3,0.47144768]
[1740418424806,6.45852133,2674.4,2674.1,3.051]
[1740418425010,6.45852133,2674.2,2674.1,3.051]
[1740418425599,6.45852133,2674.2,2674.0,0.5476]
[1740418425904,6.45852133,2674.2,2673.9,3.05560276]
[1740418426101,0.5695,2674.3,2674.0,0.54921548]
[1740418426304,3.2078,2674.7,2674.1,3.75695471]
[1740418426499,6.45852133,2674.4,2674.1,3.2078]
[1740418426906,0.5695,2674.6,2674.2,0.5490173]
[1740418427106,0.5621,2674.8,2674.3,3.60196439]
[1740418427301,6.45852133,2674.7,2674.3,3.053]
[1740418427507,6.45852133,2674.7,2674.4,1.12014345]
[1740418427712,0.5621,2674.8,2674.4,4.25063629]
[1740418427909,0.5617,2674.9,2674.4,3.7791]
[1740418428109,0.00560276,2675.0,2674.7,3.2078]
[1740418428304,0.74762,2674.8,2674.7,7.00843]
[1740418428907,0.74762,2674.8,2674.7,6.2608]
[1740418429812,0.00560276,2675.0,2674.9,0.7476]
[1740418430014,0.74762,2674.8,2674.7,6.2608]
[1740418430314,0.74768,2674.6,2674.5,0.5571]
[1740418430609,0.74768,2674.6,2674.5,3.052]
[1740418433605,0.74776,2674.3,2674.2,0.5661]
[1740418434420,0.74776,2674.3,2674.2,1.11475902]
[1740418434719,0.74776,2674.3,2674.2,1.58598153]
[1740418435617,0.74776,2674.3,2674.2,2.33377153]
[1740418435820,1.0936,2674.7,2674.2,4.79378153]
[1740418436024,1.0936,2674.7,2674.3,0.54865902]
[1740418436224,1.0936,2674.7,2674.2,6.11454251]
[1740418436225,0.5481,2674.7,2674.5,3.2078]
[1740418436922,7.00662133,2674.7,2674.2,0.5661]
[1740418437123,7.00662133,2674.7,2674.3,3.047]
[1740418438127,0.5481,2674.7,2674.3,3.047]
[1740418438323,6.45852133,2674.4,2674.2,3.6101]
[1740418438520,6.45852133,2674.3,2674.0,6.2528]
[1740418438924,0.5823,2674.2,2674.0,6.2528]
[1740418439125,0.5823,2674.2,2674.0,3.045]
[1740418440126,0.5823,2674.2,2673.9,3.04960276]
[1740418440326,6.45852133,2674.1,2673.9,3.04960276]
[1740418440520,0.5823,2674.2,2674.0,3.2078]
[1740418440727,0.3741,2674.7,2674.0,3.2078]
[1740418440926,6.45852133,2674.3,2674.0,3.2078]
[1740418442032,0.5377,2674.2,2674.0,3.2078]
[1740418442433,1.1272,2674.8,2674.1,0.54874652]
[1740418442634,6.45852133,2674.6,2674.2,3.59074652]
[1740418442836,6.45852133,2674.6,2674.3,0.54874652]
[1740418443136,6.45852133,2674.6,2674.3,0.47120493]
[1740418443327,6.45852133,2674.4,2674.3,0.47120493]
[1740418443832,6.45852133,2674.4,2674.2,3.041]
[1740418444029,6.45852133,2674.3,2674.2,3.041]
[1740418444534,0.534,2674.7,2674.2,3.58964244]
[1740418444730,6.45852133,2674.4,2674.3,3.2078]
[1740418445030,3.2078,2674.6,2674.2,3.043]
[1740418445225,6.45852133,2674.3,2674.2,3.043]
[1740418448035,6.45852133,2674.3,2673.9,0.00560276]
[1740418448036,9.66632133,2674.3,2673.9,0.00560276]
[1740418448234,6.45852133,2674.0,2673.9,0.00560276]
[1740418449133,10.41417133,2674.0,2673.9,2.76e-06]
[1740418449332,10.78827133,2674.0,2673.9,2.76e-06]
[1740418449730,10.8496241,2674.0,2673.9,2.76e-06]
[1740418451427,1.7229,2674.2,2673.9,2.76e-06]
[1740418451625,0.5831,2674.2,2674.1,0.74782]
[1740418451823,0.5831,2674.2,2674.0,6.2488]
[1740418451824,0.74782,2674.1,2674.0,6.834]
[1740418452630,0.5618,2674.6,2674.0,6.834]
[1740418452834,0.5618,2674.6,2674.5,0.74771]
[1740418453132,0.74771,2674.5,2674.4,3.041]
[1740418453335,0.74771,2674.5,2674.4,3.5915]
[1740418453931,0.5618,2674.6,2674.0,3.793]
[1740418454137,0.74782,2674.1,2674.0,4.3435]
[1740418454433,0.74782,2674.1,2674.0,7.3895]
[1740418454640,7.20634133,2674.1,2674.0,6.2528]
[1740418454940,0.74785,2674.0,2673.9,2.76e-06]
[1740418455143,6.45852133,2674.1,2673.9,3.20780276]
[1740418455440,6.45852133,2674.1,2674.0,1.29875]
[1740418455632,0.74782,2674.2,2674.0,1.29874]
[1740418455831,6.45852133,2674.1,2674.0,1.85074]
[1740418456035,0.5618,2674.6,2674.0,1.65030758]
[1740418456235,7.02032133,2674.6,2674.3,3.95555]
[1740418456439,0.74774,2674.4,2674.3,3.2078]
[1740418456640,7.02032133,2674.6,2674.3,3.95554]
[1740418456641,0.74772,2674.5,2674.3,3.95554]
[1740418457041,0.5892,2674.9,2674.5,0.74771]
[1740418457242,0.74772,2674.5,2674.4,0.74773]
[1740418457441,0.74771,2674.5,2674.4,3.80273]
[1740418458038,1.1295,2674.9,2674.4,3.055]
[1740418458239,0.74768,2674.6,2674.5,0.5494]
[1740418459245,0.74771,2674.5,2674.4,3.055]
[1740418460139,0.74771,2674.5,2674.0,0.5509]
[1740418460140,0.74782,2674.1,2674.0,0.5509]
[1740418460347,0.74782,2674.1,2674.0,7.90615309]
[1740418460543,0.74782,2674.1,2674.0,7.3591]
[1740418460845,0.74782,2674.1,2674.0,7.82900695]
[1740418461040,0.74782,2674.1,2674.0,7.28060695]
[1740418461448,7.20634133,2674.1,2674.0,6.72970695]
[1740418461640,7.20634133,2674.1,2674.0,6.2598]
[1740418462541,0.74782,2674.1,2674.0,6.2598]
[1740418463138,0.74782,2674.1,2674.0,3.2078]
[1740418463341,6.45852133,2674.1,2673.9,2.76e-06]
[1740418463541,4.3393,2674.3,2673.9,2.76e-06]
[1740418463542,7.20637133,2674.0,2673.9,2.76e-06]
[1740418463750,0.74785,2674.0,2673.9,2.76e-06]
[1740418464142,1.1315,2674.3,2673.9,2.76e-06]
[1740418464339,1.1315,2674.3,2674.2,3.2078]
[1740418464340,0.74776,2674.3,2674.2,3.2078]
[1740418464539,0.74785,2674.0,2673.9,2.76e-06]
[1740418464745,0.74785,2674.0,2673.9,0.54724553]
[1740418464948,0.74785,2674.0,2673.9,2.76e-06]
[1740418465252,0.5715,2674.4,2673.9,2.76e-06]
[1740418465545,0.74785,2674.0,2673.9,0.74787276]
[1740418465952,3.2078,2675.1,2673.9,6.5472997]
[1740418466150,0.5529,2674.8,2674.6,3.2078]
[1740418466343,1.30052,2674.8,2674.7,3.6355]
[1740418467147,7.75904133,2674.8,2674.7,3.053]
[1740418467548,7.75904133,2674.8,2674.3,3.7762]
[1740418467549,0.74774,2674.4,2674.3,3.7762]
[1740418467754,0.74774,2674.4,2674.3,6.2598]
[1740418471251,0.5767,2674.7,2674.3,6.2598]
[1740418471561,6.45852133,2674.4,2674.2,2.982]
[1740418471754,7.04772133,2674.3,2674.1,3.046]
[1740418472151,6.45852133,2674.2,2673.9,3.20780276]
[1740418472352,9.66632133,2674.0,2673.9,2.76e-06]
[1740418473251,10.41417133,2674.0,2673.9,2.76e-06]
[1740418474854,0.74785,2674.0,2673.9,2.76e-06]
[1740418475558,7.20637133,2674.0,2673.9,40.80000276]
[1740418475956,7.20637133,2674.0,2673.9,2.76e-06]
[1740418479257,6.45852133,2674.0,2673.9,2.76e-06]
[1740418480357,10.04042133,2674.0,2673.9,2.76e-06]
[1740418480764,10.10177427,2674.0,2673.9,2.76e-06]
[1740418481565,16.10177427,2674.0,2673.9,2.76e-06]
[1740418483359,16.84962427,2674.0,2673.9,2.76e-06]
[1740418484463,16.78827133,2674.0,2673.9,2.76e-06]
[1740418484668,16.84963086,2674.0,2673.9,2.76e-06]
[1740418485364,10.84963086,2674.0,2673.9,2.76e-06]
[1740418486763,16.84963086,2674.0,2673.9,2.76e-06]
[1740418487562,10.84963086,2674.0,2673.9,2.76e-06]
[1740418490674,16.84963086,2674.0,2673.9,2.76e-06]
[1740418491471,10.84963086,2674.0,2673.9,2.76e-06]
[1740418492178,10.78827133,2674.0,2673.9,2.76e-06]
[1740418492379,0.3741,2674.1,2673.9,2.76e-06]
[1740418492569,7.20637133,2674.0,2673.9,2.76e-06]
[1740418493065,0.74785,2674.0,2673.9,2.76e-06]
[1740418498671,7.20637133,2674.0,2673.9,2.76e-06]
[1740418502385,10.4755217,2674.0,2673.9,2.76e-06]
[1740418502678,16.4755217,2674.0,2673.9,2.76e-06]
[1740418503377,15.7276717,2674.0,2673.1,4.1145]
[1740418503579,0.74807,2673.2,2673.1,1.0955]
[1740418504080,0.74824,2672.6,2672.5,3.2078]
[1740418504378,0.74824,2672.6,2672.5,7.82242986]
[1740418504582,0.74824,2672.6,2672.5,7.27472492]
[1740418504977,0.74824,2672.6,2672.5,6.8043]
[1740418505180,0.74824,2672.6,2672.5,7.27376203]
[1740418505781,0.74824,2672.6,2672.5,6.8033]
[1740418506681,0.5632,2673.2,2672.5,6.8033]
[1740418506682,8.09664,2673.7,2672.5,7.35074906]
[1740418506992,0.74821,2672.7,2672.6,3.2078]
[1740418507381,0.74821,2672.7,2672.6,3.7893]
[1740418508581,0.74821,2672.7,2672.6,0.5815]
[1740418508881,7.20673133,2672.7,2672.6,0.5815]
[1740418509385,6.45852133,2672.7,2672.6,0.5815]
[1740418511081,6.45852133,2672.7,2672.3,3.2115352]
[1740418511285,6.45852133,2672.5,2672.3,3.2115352]
[1740418511487,6.45852133,2672.4,2672.3,3.2115352]
[1740418511885,3.2078,2672.8,2672.3,3.2115352]
[1740418512087,6.45852133,2672.4,2672.3,3.7715352]
[1740418512479,3.2078,2672.8,2672.3,3.7715352]
[1740418512888,6.45852133,2672.5,2672.3,3.7715352]
[1740418513981,0.00560276,2672.9,2672.3,3.7715352]
[1740418514291,0.00560276,2672.9,2672.7,3.2078]
[1740418514496,0.5331,2673.6,2672.8,0.559]
[1740418514685,6.45852133,2673.6,2673.3,3.2078]
[1740418514984,4.3276,2674.7,2673.4,4.11858556]
[1740418515188,6.45852133,2674.1,2673.7,3.2078]
[1740418515495,11.53595133,2674.0,2673.8,3.017]
[1740418515788,0.74788,2673.9,2673.8,3.017]
[1740418516091,0.74793,2673.7,2673.6,0.00560276]
[1740418516295,7.20645133,2673.7,2673.6,0.00560276]
[1740418517494,0.74793,2673.7,2673.6,0.00560276]
[1740418517692,0.00560276,2674.2,2673.6,3.21340276]
[1740418517891,0.00560276,2674.2,2674.1,0.74782]
[1740418518189,0.00560276,2674.2,2674.1,3.76982]
[1740418518393,0.75339276,2674.2,2674.1,3.022]
[1740418518591,0.00560276,2674.2,2674.0,1.1364]
[1740418518799,0.74785,2674.0,2673.9,3.022]
[1740418518997,0.7479,2673.8,2673.7,4.158]
[1740418519883,0.74793,2673.7,2673.6,0.00560276]
[1740418520193,7.20645133,2673.7,2673.6,0.00560276]
[1740418522394,0.74816,2672.9,2672.8,1.123]
[1740418523199,6.45852133,2672.9,2672.6,3.025]
[1740418523399,6.45852133,2672.8,2672.6,6.2328]
[1740418523593,0.5807,2673.5,2672.6,6.2328]
[1740418523791,0.5807,2673.5,2672.9,3.2078]
[1740418523792,0.74809,2673.2,2672.9,3.2078]
[1740418523992,0.7481,2673.1,2673.0,3.609]
[1740418524493,0.7481,2673.1,2673.0,3.608]
[1740418524896,1.1421,2673.5,2673.0,3.608]
[1740418525194,0.74799,2673.6,2673.3,0.74803]
[1740418525400,0.74799,2673.5,2673.4,3.029]
[1740418526199,3.00722,2673.9,2673.4,3.029]
[1740418526500,6.45852133,2673.5,2673.2,3.2078]
[1740418526697,0.74804,2673.3,2673.2,3.2078]
[1740418526893,0.7481,2673.1,2673.0,0.581]
[1740418527093,0.7481,2673.1,2673.0,3.612]
[1740418528799,2.41893276,2674.2,2673.0,12.594]
[1740418529008,2.41893276,2674.2,2673.3,3.2078]
[1740418529009,6.45852133,2673.7,2673.3,3.2078]
[1740418529304,6.45852133,2673.8,2673.4,3.033]
[1740418529511,0.74799,2673.5,2673.4,3.5971]
[1740418529898,0.74799,2673.5,2673.4,3.033]
[1740418530205,0.74797,2673.6,2673.5,0.74797]
[1740418530406,0.74797,2673.6,2673.5,0.5464]
[1740418530904,0.74799,2673.5,2673.4,3.033]
[1740418534307,0.59,2673.9,2673.4,3.033]
[1740418534494,6.45852133,2673.8,2673.4,3.033]
[1740418535398,0.59,2673.9,2673.4,3.033]
[1740418535598,0.00560276,2674.2,2673.6,3.2078]
[1740418535803,0.00560276,2674.2,2673.9,3.2078]
[1740418536003,0.00560276,2674.2,2674.0,3.024]
[1740418536404,0.00560276,2674.2,2674.1,40.8]
[1740418537605,0.00560276,2674.2,2674.0,3.024]
[1740418537803,6.45852133,2674.1,2673.9,0.00560276]
[1740418538005,6.99812133,2674.0,2673.9,0.00560276]
[1740418540903,10.20592133,2674.0,2673.2,3.2078]
[1740418541109,6.45852133,2673.3,2673.2,3.2078]
[1740418541304,0.74804,2673.3,2673.2,3.2078]
[1740418543519,0.5781,2673.9,2673.2,3.2078]
[1740418543807,7.20643133,2673.8,2673.5,3.2078]
[1740418544011,0.5781,2673.9,2673.8,0.7479]
[1740418544210,0.74793,2673.7,2673.6,0.5785]
[1740418544405,0.5781,2673.9,2673.6,0.5785]
[1740418544707,0.74793,2673.7,2673.6,0.5785]
[1740418544910,0.74793,2673.7,2673.5,6.2278]
[1740418544911,0.74796,2673.6,2673.5,6.2278]
[1740418545111,7.20648133,2673.6,2673.5,6.2278]
[1740418545413,0.74796,2673.6,2673.5,6.2278]
[1740418546608,0.74796,2673.6,2673.5,3.2078]
[1740418547113,0.5781,2673.9,2673.5,3.2078]
[1740418547306,6.45852133,2673.7,2673.5,3.2078]
[1740418549015,6.45852133,2673.6,2673.5,3.2078]
[1740418549202,6.45852133,2673.6,2673.2,0.5785]
[1740418549402,6.99212133,2673.5,2673.3,3.02]
[1740418549605,6.99212133,2673.5,2673.1,3.2078]
[1740418549915,6.45852133,2673.3,2673.2,3.021]
[1740418550512,0.5336,2673.5,2673.2,3.021]
[1740418550714,6.45852133,2673.3,2673.2,3.021]
[1740418551215,0.5336,2673.5,2673.2,3.021]
[1740418551514,6.45852133,2673.3,2673.2,3.021]
[1740418551710,6.45852133,2673.4,2673.2,3.021]
[1740418552110,0.5336,2673.5,2673.2,3.021]
[1740418552310,3.7859,2673.9,2673.2,3.021]
[1740418552514,6.45852133,2673.6,2673.3,0.5882]
[1740418553103,6.45852133,2673.4,2673.2,3.021]
[1740418553305,0.5723,2673.3,2673.2,3.021]
[1740418553509,1.1402,2673.3,2673.2,3.021]
[1740418555411,7.59872133,2673.3,2673.1,3.2078]
[1740418555716,6.45852133,2673.2,2673.0,0.0037352]
[1740418555918,6.45852133,2673.1,2673.0,0.0037352]
[1740418560416,1.1402,2673.3,2673.0,0.0037352]
[1740418560619,1.1402,2673.3,2673.0,3.2115352]
[1740418560917,0.5743,2673.7,2673.0,6.2295352]
[1740418561118,6.45852133,2673.5,2673.0,6.2295352]
[1740418561317,8.32852133,2673.5,2673.0,6.2295352]
[1740418561720,0.74806,2673.3,2673.2,0.74805]
[1740418561914,2.97463,2673.6,2673.2,0.74805]
[1740418562118,2.97463,2673.6,2673.0,6.2295352]
[1740418562119,0.74796,2673.6,2673.5,3.95577]
[1740418562318,0.74796,2673.6,2673.5,6.2268]
[1740418563415,1.1324,2673.9,2673.5,6.2268]
[1740418563628,0.74796,2673.6,2673.5,6.2268]
[1740418563927,7.20648133,2673.6,2673.5,3.019]
[1740418564627,0.74796,2673.6,2673.5,3.019]
[1740418565021,7.20648133,2673.6,2673.5,3.019]
[1740418565421,0.74804,2673.3,2673.2,3.2078]
[1740418566519,1.1223,2673.4,2673.3,0.74804]
[1740418566824,0.74792,2673.8,2673.6,0.74794]
[1740418567025,7.20644133,2673.8,2673.6,0.74794]
[1740418567230,0.5673,2673.9,2673.5,6.2318]
[1740418567434,1.31519,2673.9,2673.6,1.1379]
[1740418567632,7.02582133,2673.9,2673.6,1.1379]
[1740418567821,0.74793,2673.7,2673.6,1.1379]
[1740418568021,0.5673,2673.9,2673.5,6.2318]
[1740418568327,0.74796,2673.6,2673.5,6.2318]
[1740418569132,0.74804,2673.3,2673.2,3.2078]
[1740418569331,0.74804,2673.3,2673.2,6.2358]
[1740418569932,0.74804,2673.3,2673.2,7.3737]
[1740418570134,0.74804,2673.3,2673.2,6.2358]
[1740418570332,7.20656133,2673.3,2673.2,6.2358]
[1740418570633,0.74804,2673.3,2673.2,3.2078]
[1740418570835,7.20656133,2673.3,2673.2,3.2078]
[1740418571330,0.5385,2673.5,2673.2,3.2078]
[1740418571538,1.1232,2673.7,2673.2,3.2078]
[1740418571539,0.5371,2673.7,2673.6,0.74796]
[1740418571734,7.74355133,2673.7,2673.6,3.032]
[1740418572433,1.28503,2673.7,2673.6,3.032]
[1740418572733,0.5503,2674.1,2673.6,9.032]
[1740418573042,0.5371,2674.6,2674.5,0.74771]
[1740418573331,0.74765,2674.8,2674.5,3.041]
[1740418573531,1.1107,2675.2,2674.5,3.7887]
[1740418573532,6.45852133,2674.9,2674.5,3.7887]
[1740418573728,6.45852133,2675.0,2674.9,0.7476]
[1740418573928,7.20609133,2675.0,2674.9,3.043]
[1740418574340,6.45852133,2675.0,2674.7,3.96104276]
[1740418574638,7.20609133,2675.0,2674.9,3.042]
[1740418574838,0.74762,2674.8,2674.7,3.21340276]
[1740418575032,0.74762,2674.8,2674.7,3.04660276]
[1740418575228,0.74762,2674.8,2674.7,0.00560276]
[1740418575535,0.74762,2674.8,2674.7,3.04660276]
[1740418576936,1.10570276,2675.2,2674.7,7.00203276]
[1740418577136,6.45852133,2674.9,2674.7,7.00203276]
[1740418577742,6.45852133,2674.9,2674.7,6.25440276]
[1740418578129,0.74762,2674.8,2674.7,6.25440276]
[1740418579936,1.10570276,2675.2,2674.7,6.25440276]
[1740418580139,7.20611133,2675.0,2674.8,0.74761]
[1740418580638,1.10570276,2675.2,2674.8,0.74761]
[1740418580939,0.74761,2674.9,2674.7,7.00204276]
[1740418581135,0.74762,2674.8,2674.7,6.25440276]
[1740418581538,0.74762,2674.8,2674.7,7.00205276]
[1740418581845,0.74761,2674.9,2674.7,7.00203276]
[1740418582142,0.7476,2674.9,2674.7,7.00203276]
[1740418582331,1.10570276,2675.2,2674.8,1.86903]
[1740418582535,6.45852133,2675.1,2674.8,1.30602]
[1740418582731,6.45852133,2675.1,2674.9,0.74758]
[1740418582939,1.10570276,2675.2,2674.8,0.5584]
[1740418583242,6.45852133,2675.1,2674.8,1.30601]
[1740418583444,0.7476,2674.9,2674.8,1.30601]
[1740418583642,0.7476,2674.9,2674.8,0.5584]
[1740418583840,0.74762,2674.8,2674.7,6.25440276]
[1740418584239,0.74762,2674.8,2674.7,3.21340276]
[1740418584439,0.74762,2674.8,2674.7,6.24640276]
[1740418584841,0.74762,2674.8,2674.7,3.03860276]
[1740418585039,0.74762,2674.8,2674.7,6.24640276]
[1740418585945,0.74759,2675.0,2674.8,0.74761]
[1740418586147,0.74762,2674.8,2674.7,6.24640276]
[1740418586650,0.74762,2674.8,2674.7,3.03860276]
[1740418587844,0.74762,2674.8,2674.7,6.24640276]
[1740418588245,3.2078,2675.1,2674.7,6.24640276]
[1740418588442,6.45852133,2674.9,2674.7,3.03860276]
[1740418588642,6.45852133,2674.8,2674.7,3.03860276]
[1740418589046,6.45852133,2674.8,2674.7,0.00560276]
[1740418591345,9.66632133,2674.8,2674.0,0.5583]
[1740418591550,6.45852133,2674.1,2674.0,3.03]
[1740418592042,3.2078,2674.5,2674.0,3.03]
[1740418592248,6.45852133,2674.1,2674.0,3.03]
[1740418592443,6.45852133,2674.1,2674.0,3.0337352]
[1740418593045,0.5819,2674.6,2674.0,3.0337352]
[1740418593349,0.5819,2674.6,2674.4,3.2078]
[1740418593551,0.5823,2675.1,2674.5,3.036]
[1740418593744,6.45852133,2674.8,2674.7,3.2078]
[1740418594044,6.45852133,2674.8,2674.7,44.0078]
[1740418594249,0.74762,2674.8,2674.7,44.0078]
[1740418594637,0.74762,2674.8,2674.7,3.2078]
[1740418595448,1.86915,2674.7,2674.2,0.5865]
[1740418595746,0.74776,2674.3,2674.2,3.034]
[1740418598548,1.1397,2674.4,2674.3,0.74776]